bitfinex-derivatives/quotes_ETHF0:USTF0_20251117
["timestamp","ask_amount","ask_price","bid_price","bid_amount"]
[1763411421427,0.5711,2993.6,2993.2,3.2078]
[1763411422128,0.57611303,2994.4,2993.5,3.2078]
[1763411422332,0.57611303,2994.4,2993.8,3.2078]
[1763411422834,0.57611303,2994.4,2992.6,1.19193577]
[1763411422835,0.00501303,2994.4,2994.1,3.2078]
[1763411423642,0.00501303,2994.4,2994.1,6.547]
[1763411423939,0.00501303,2994.4,2994.1,3.2078]
[1763411424341,0.57611303,2994.4,2994.1,3.2078]
[1763411425246,0.57611303,2994.4,2993.6,3.2078]
[1763411425247,3.78391303,2994.4,2993.6,3.2078]
[1763411425540,3.2078,2993.8,2992.8,4.09437814]
[1763411425844,3.2078,2993.8,2991.8,2.97013759]
[1763411425845,0.5711,2992.5,2991.7,0.88657814]
[1763411426033,3.2078,2992.1,2991.5,3.2109159]
[1763411426342,0.5711,2991.6,2991.5,0.0031159]
[1763411426850,3.7789,2992.5,2991.5,3.2109159]
[1763411427042,0.00242492,2991.6,2991.5,3.2109159]
[1763411427544,0.5711,2992.5,2991.5,3.2109159]
[1763411427735,0.5711,2992.5,2992.1,3.2078]
[1763411428840,3.7789,2992.5,2991.7,3.2078]
[1763411429348,0.5711,2992.5,2991.7,3.2078]
[1763411429641,0.5711,2992.5,2992.0,3.2078]
[1763411431043,0.5711,2992.5,2992.3,3.2078]
[1763411431340,0.5711,2993.4,2992.3,3.2078]
[1763411431341,3.7789,2993.4,2992.3,4.09437814]
[1763411431544,0.5711,2993.4,2992.7,3.2078]
[1763411431748,0.5711,2994.3,2993.3,3.2078]
[1763411431749,3.7789,2994.3,2993.3,3.2078]
[1763411431935,0.5711,2994.3,2993.5,3.2078]
[1763411432339,0.5711,2994.3,2993.8,3.2078]
[1763411432539,3.2078,2995.3,2994.2,3.2078]
[1763411432741,3.2078,2995.3,2994.6,3.2078]
[1763411433945,0.55400419,2995.2,2994.6,0.00341286]
[1763411434140,3.2078,2995.1,2994.6,0.00341286]
[1763411434547,3.2078,2994.8,2994.6,0.00341286]
[1763411434949,3.2078,2995.1,2994.6,0.00341286]
[1763411435447,3.2078,2994.8,2994.6,0.00341286]
[1763411435645,0.5505,2994.3,2993.4,0.88657814]
[1763411435841,0.5505,2994.3,2992.9,0.88657814]
[1763411435842,0.5505,2993.4,2992.9,0.88657814]
[1763411436043,0.5505,2993.4,2992.7,3.21281303]
[1763411436438,0.5505,2993.4,2993.1,3.2078]
[1763411436643,3.7583,2994.3,2993.3,3.2078]
[1763411436850,3.2078,2994.0,2993.3,3.2078]
[1763411438347,0.5505,2994.3,2993.0,0.88657814]
[1763411438348,0.00501303,2993.9,2993.6,3.2078]
[1763411439556,0.00501303,2993.9,2992.9,0.88657814]
[1763411439557,0.5505,2993.4,2992.9,0.88657814]
[1763411439759,3.2078,2993.3,2992.7,0.00501303]
[1763411440049,0.5505,2993.4,2992.7,0.00501303]
[1763411440258,0.5505,2993.4,2992.9,3.2078]
[1763411440647,0.5505,2993.4,2992.7,0.00742665]
[1763411440648,3.2078,2993.1,2992.7,0.00742665]
[1763411440847,0.5505,2993.4,2992.7,0.00742665]
[1763411440848,3.7583,2993.4,2992.7,0.00742665]
[1763411441447,0.00501303,2993.9,2993.2,3.2078]
[1763411441858,3.2078,2993.8,2992.9,3.2078]
[1763411442156,0.5505,2993.4,2992.8,3.2078]
[1763411442352,0.5505,2993.4,2992.7,0.00742665]
[1763411442353,0.5505,2993.4,2992.9,3.2078]
[1763411442552,3.2078,2993.2,2992.7,0.00742665]
[1763411446553,3.2078,2992.8,2992.7,0.00742665]
[1763411446877,3.2078,2992.8,2991.8,1.78790366]
[1763411446878,0.5505,2992.5,2991.3,3.2078]
[1763411447055,0.5505,2992.5,2990.8,1.19193577]
[1763411447056,3.2078,2992.2,2991.6,3.2078]
[1763411447359,3.2078,2992.2,2991.3,4.39973577]
[1763411447751,3.2078,2992.2,2991.3,3.2078]
[1763411447954,3.21140565,2992.2,2991.3,3.21176519]
[1763411448749,0.5505,2991.6,2991.3,0.00396519]
[1763411449053,0.00360565,2992.2,2991.3,0.00396519]
[1763411449054,3.21140565,2992.2,2991.3,3.21176519]
[1763411449261,0.00360565,2992.2,2992.1,3.2078]
[1763411449654,0.00360565,2992.2,2991.5,3.2078]
[1763411449853,0.00501303,2992.1,2991.5,3.21281303]
[1763411450260,0.00501303,2992.1,2991.8,3.2078]
[1763411451554,0.00501303,2992.1,2991.5,3.21281303]
[1763411451957,3.2078,2992.0,2991.5,3.21281303]
[1763411453459,0.5505,2991.6,2991.5,0.00501303]
[1763411453762,0.5505,2991.6,2991.3,0.00396519]
[1763411455164,3.2078,2992.0,2991.3,3.21176519]
[1763411455663,0.00501303,2992.1,2991.6,3.2078]
[1763411455865,0.00501303,2992.1,2991.9,3.2078]
[1763411456164,3.2078,2993.1,2991.9,3.2078]
[1763411456364,3.7583,2993.4,2992.6,3.2078]
[1763411458272,3.76178092,2993.4,2992.6,3.2078]
[1763411459172,0.00501303,2993.3,2992.6,3.2078]
[1763411460274,0.00501303,2993.3,2992.9,3.2078]
[1763411460568,0.00501303,2993.3,2993.2,3.2078]
[1763411461169,0.5136,2992.8,2992.7,0.00501303]
[1763411461369,0.5136,2992.8,2991.5,1.19193577]
[1763411461566,0.5136,2992.8,2991.3,0.00396519]
[1763411461567,3.2078,2991.6,2991.3,0.00396519]
[1763411461964,3.2078,2991.6,2990.0,3.2078]
[1763411462267,3.2078,2990.3,2989.9,1.19193577]
[1763411462468,3.2078,2990.0,2989.4,3.2078]
[1763411462862,3.2078,2990.3,2989.4,3.2078]
[1763411463063,3.2078,2990.6,2989.8,0.5237]
[1763411463466,3.2078,2990.3,2989.4,4.39973577]
[1763411463666,3.2078,2990.6,2989.4,4.39973577]
[1763411463867,3.2078,2990.7,2989.5,3.2078]
[1763411464170,3.2078,2990.0,2989.4,0.00260699]
[1763411464474,3.21098819,2990.6,2989.5,3.2078]
[1763411464670,3.2078,2990.3,2989.5,3.2078]
[1763411464972,3.2078,2989.8,2989.4,0.00260699]
[1763411465176,3.2078,2989.5,2989.3,0.00501303]
[1763411465471,3.2078,2989.5,2988.3,3.2078]
[1763411465670,3.2078,2989.5,2988.2,1.19193577]
[1763411465671,3.2078,2988.8,2988.0,3.2078]
[1763411465871,3.2078,2989.2,2988.0,3.2078]
[1763411466073,3.2078,2989.5,2988.4,3.2078]
[1763411466372,3.2078,2989.5,2988.7,3.24125992]
[1763411466571,0.00501303,2989.9,2989.4,3.2078]
[1763411466777,0.00501303,2989.9,2988.9,0.5237]
[1763411466778,0.00501303,2989.9,2989.5,3.2078]
[1763411466961,0.00501303,2989.9,2988.9,0.5237]
[1763411466962,0.00318819,2990.6,2989.8,3.7315]
[1763411467477,3.2078,2991.2,2990.4,3.2078]
[1763411467662,3.2078,2991.5,2990.4,3.2078]
[1763411467869,3.2078,2991.5,2990.8,3.2078]
[1763411468371,3.2078,2991.8,2990.7,0.5237]
[1763411468678,3.2078,2991.0,2990.2,4.39973577]
[1763411468970,1.18527397,2993.1,2990.2,3.2078]
[1763411469173,3.2078,2991.5,2990.2,3.21155572]
[1763411469382,3.2078,2991.5,2990.3,3.2078]
[1763411469683,3.2078,2991.5,2990.2,1.19569149]
[1763411469684,3.2078,2990.6,2990.2,0.00375572]
[1763411470372,3.2078,2990.3,2989.1,1.19193577]
[1763411470572,3.2078,2989.5,2988.8,3.2078]
[1763411470769,3.2078,2989.5,2988.3,1.78790366]
[1763411470770,3.2078,2990.0,2989.0,3.2078]
[1763411470971,3.2078,2989.4,2988.5,3.2078]
[1763411471382,3.2078,2989.7,2988.5,3.2078]
[1763411471573,3.2078,2989.4,2988.5,3.2078]
[1763411472172,3.2078,2989.4,2988.8,3.2078]
[1763411472371,3.2078,2989.5,2988.8,3.2078]
[1763411472575,3.2078,2989.2,2988.4,7.0838]
[1763411472877,0.4304,2990.0,2988.4,3.2078]
[1763411472878,3.2078,2988.9,2988.4,3.2078]
[1763411473379,3.2078,2988.9,2987.9,3.2078]
[1763411473573,3.2078,2988.3,2987.6,3.2078]
[1763411473976,3.2078,2988.3,2987.6,3.21178753]
[1763411474170,3.2078,2988.6,2987.6,3.21178753]
[1763411474371,3.7214,2989.0,2987.6,3.21178753]
[1763411474580,3.2078,2988.4,2988.0,0.00501303]
[1763411475080,0.5136,2989.0,2988.0,0.00501303]
[1763411475081,3.2078,2988.7,2988.0,0.00501303]
[1763411475669,3.2078,2988.7,2988.2,3.2078]
[1763411476071,3.2078,2988.7,2988.0,0.00501303]
[1763411476072,3.2078,2989.4,2988.5,3.2078]
[1763411477983,3.2078,2989.4,2988.8,3.2078]
[1763411478275,3.2119014,2989.4,2988.8,3.2078]
[1763411478478,3.21691443,2989.4,2988.8,3.2078]
[1763411478676,0.00911443,2989.4,2989.1,3.2078]
[1763411479076,3.2078,2990.0,2989.1,3.2078]
[1763411479269,3.2078,2989.7,2988.8,3.2078]
[1763411479473,3.2078,2989.4,2988.8,3.2078]
[1763411480280,3.2078,2989.4,2988.9,0.2888]
[1763411480481,3.2078,2989.4,2988.8,3.2078]
[1763411480781,3.2078,2989.8,2988.8,3.2078]
[1763411480990,3.2078,2989.8,2989.1,3.2078]
[1763411481486,0.00366105,2989.8,2989.6,3.2078]
[1763411481781,3.2078,2990.7,2989.6,3.2078]
[1763411481991,1.303e-05,2990.0,2989.8,0.4063]
[1763411482184,3.2078,2991.0,2989.9,6.5518]
[1763411482484,3.2078,2991.3,2990.6,3.2078]
[1763411482683,3.2078,2991.3,2989.8,0.4063]
[1763411482684,3.2078,2991.3,2990.0,3.2078]
[1763411482874,0.3472,2992.0,2989.7,3.2078]
[1763411482875,3.2078,2990.4,2989.7,3.2078]
[1763411483078,3.2078,2990.1,2989.4,3.2078]
[1763411483283,3.2078,2989.5,2988.8,3.2078]
[1763411483887,3.2078,2989.2,2988.8,0.00336669]
[1763411484282,3.2078,2988.9,2988.8,0.00336669]
[1763411484689,3.6328,2988.9,2988.8,0.00336669]
[1763411485589,9.6328,2988.9,2987.5,3.2078]
[1763411485780,3.2078,2988.4,2987.5,3.2078]
[1763411486378,3.2078,2988.4,2987.7,3.2078]
[1763411486578,0.425,2988.9,2987.7,3.2078]
[1763411486579,3.2078,2988.7,2987.7,3.2078]
[1763411487187,3.2078,2988.4,2987.7,3.2078]
[1763411487886,3.2078,2988.7,2987.7,3.2078]
[1763411488290,3.2078,2988.4,2987.7,3.2078]
[1763411488887,3.2078,2988.0,2987.4,3.2078]
[1763411489093,3.2078,2988.0,2987.0,1.78790366]
[1763411489094,3.2078,2987.7,2987.0,3.2078]
[1763411489800,3.2078,2987.7,2987.0,3.21147189]
[1763411490281,3.2078,2987.7,2987.0,0.00367189]
[1763411490479,3.2078,2987.4,2987.0,0.00367189]
[1763411491388,3.2078,2987.1,2987.0,0.00367189]
[1763411491786,3.2078,2987.1,2986.1,3.2078]
[1763411491987,3.2078,2986.8,2986.1,3.2078]
[1763411492994,0.3633,2987.2,2985.4,1.19193577]
[1763411492995,3.2078,2986.2,2985.4,1.19193577]
[1763411493197,0.3633,2987.2,2985.5,3.2078]
[1763411493198,0.4928,2986.4,2985.5,3.2078]
[1763411493596,0.49557578,2986.4,2985.5,3.21154463]
[1763411494094,0.00277578,2986.4,2985.9,3.2078]
[1763411495385,3.7006,2986.2,2985.5,0.00374463]
[1763411495590,3.2078,2985.9,2985.5,0.00374463]
[1763411495897,3.2078,2985.6,2984.6,3.2078]
[1763411496189,3.2078,2985.3,2984.6,3.2078]
[1763411496580,3.2078,2986.0,2984.9,3.2078]
[1763411496799,3.2078,2985.6,2984.9,3.2078]
[1763411496994,3.7006,2985.6,2984.9,3.2078]
[1763411497301,3.2078,2985.0,2984.1,0.26658366]
[1763411497487,0.4928,2985.6,2984.1,0.26658366]
[1763411497488,3.2078,2984.9,2984.1,0.26658366]
[1763411497687,3.2078,2985.0,2984.1,3.2078]
[1763411497888,3.2078,2985.0,2984.4,3.2078]
[1763411498400,3.7006,2985.6,2984.4,3.21160398]
[1763411498596,3.2078,2985.3,2984.4,3.21160398]
[1763411498992,3.2078,2984.9,2984.4,3.21160398]
[1763411499495,0.4928,2984.8,2984.4,3.21160398]
[1763411499801,3.2078,2984.6,2984.4,0.00380398]
[1763411499994,3.2078,2984.6,2983.7,0.033516]
[1763411500300,3.2078,2984.1,2983.7,0.033516]
[1763411500499,3.2078,2984.5,2983.7,3.241316]
[1763411500697,0.4928,2984.8,2983.7,3.241316]
[1763411500907,3.2078,2984.6,2983.7,3.241316]
[1763411501199,3.2078,2984.1,2983.7,0.033516]
[1763411501403,0.4928,2984.8,2982.0,3.2078]
[1763411501404,3.2078,2983.8,2982.0,3.2078]
[1763411501702,3.2078,2983.0,2982.0,3.2078]
[1763411501901,3.2078,2983.0,2981.3,1.19193577]
[1763411501902,0.4928,2983.2,2982.6,3.2078]
[1763411502100,3.2078,2983.8,2982.6,3.2078]
[1763411502305,3.2078,2983.3,2982.6,3.2078]
[1763411502603,3.2078,2983.0,2982.3,3.2078]
[1763411503501,3.7006,2982.4,2981.6,3.2078]
[1763411503905,3.2078,2982.0,2981.6,0.00263133]
[1763411504092,3.2078,2982.3,2981.6,0.00263133]
[1763411504300,3.2078,2982.0,2981.6,0.00263133]
[1763411504809,0.00255073,2982.0,2981.6,3.21043133]
[1763411506304,0.00255073,2982.0,2981.9,3.2078]
[1763411507107,3.2078,2983.0,2981.9,3.2078]
[1763411507309,3.2078,2983.0,2982.3,3.2078]
[1763411507510,3.2078,2982.5,2981.6,0.45663133]
[1763411507807,3.2078,2982.5,2981.6,0.00263133]
[1763411508108,3.2078,2982.2,2981.8,0.00503027]
[1763411508607,3.2078,2981.9,2981.8,0.00503027]
[1763411510013,3.21151685,2981.9,2981.8,0.00503027]
[1763411510412,0.00371685,2981.9,2981.8,0.00503027]
[1763411511215,3.21151685,2981.9,2981.8,0.00503027]
[1763411511416,0.00371685,2981.9,2981.8,0.00503027]
[1763411512006,0.00371685,2981.9,2981.8,3.21283027]
[1763411512517,0.00371685,2981.9,2981.8,0.00503027]
[1763411513719,0.00503027,2982.1,2981.8,6.00503027]
[1763411514021,3.2078,2983.6,2982.0,3.2078]
[1763411514217,3.2078,2983.3,2982.6,3.2078]
[1763411514408,3.2078,2982.8,2982.0,3.2078]
[1763411514607,0.4928,2984.0,2981.8,0.00503027]
[1763411514608,3.2078,2983.1,2982.4,3.2078]
[1763411514814,3.2078,2982.8,2982.1,3.2078]
[1763411515121,3.2078,2983.1,2982.1,3.2078]
[1763411515412,3.2078,2983.5,2982.7,3.2078]
[1763411516209,3.2078,2982.9,2982.1,3.2078]
[1763411516514,0.4928,2983.2,2982.7,3.2078]
[1763411516713,3.2078,2983.5,2982.7,3.2078]
[1763411516912,3.2078,2983.2,2982.4,3.2078]
[1763411517318,3.6209,2983.2,2982.4,3.2078]
[1763411518014,3.2078,2982.8,2982.3,3.2078]
[1763411518209,3.21283027,2982.8,2982.3,3.2078]
[1763411518618,0.00503027,2982.8,2982.3,3.2078]
[1763411518815,3.2078,2983.1,2982.4,0.3597]
[1763411519118,3.2078,2983.1,2982.6,3.2078]
[1763411519617,0.0032147,2983.2,2982.7,3.2078]
[1763411520016,3.2078,2983.1,2982.4,3.5675]
[1763411520217,3.2078,2983.1,2982.4,3.2078]
[1763411520409,0.0032147,2983.2,2982.4,3.2078]
[1763411520606,3.2078,2982.8,2982.1,3.2078]
[1763411520812,3.2078,2983.1,2982.1,3.2078]
[1763411521124,3.2078,2983.1,2982.2,3.2078]
[1763411521320,3.2078,2983.1,2982.5,3.2078]
[1763411521513,0.0032147,2983.2,2982.0,0.429]
[1763411521514,0.0032147,2983.2,2982.8,3.2078]
[1763411521718,0.0032147,2983.2,2983.1,3.2078]
[1763411522221,3.2078,2984.6,2983.1,12.5598]
[1763411522422,3.2078,2984.6,2983.7,3.2078]
[1763411522615,0.00503027,2984.4,2983.7,3.2078]
[1763411522816,3.2078,2984.0,2983.3,3.2078]
[1763411523011,3.6209,2984.0,2983.3,3.2078]
[1763411523219,3.6209,2984.0,2982.7,3.2078]
[1763411523220,3.2078,2983.4,2982.7,3.2078]
[1763411523519,3.2078,2983.7,2982.7,3.2078]
[1763411523721,3.2078,2983.4,2982.7,3.2078]
[1763411524321,3.2078,2984.0,2983.2,3.2078]
[1763411524621,3.21283027,2984.4,2983.5,3.2078]
[1763411525024,3.2078,2984.1,2983.5,3.2078]
[1763411525420,3.21283027,2984.4,2983.8,3.2078]
[1763411525626,3.21283027,2984.4,2983.5,3.2078]
[1763411525927,3.2078,2983.7,2983.3,0.88930353]
[1763411526120,3.2078,2983.7,2983.0,0.88930353]
[1763411526431,0.4131,2984.0,2983.1,4.09710353]
[1763411527118,3.2078,2984.1,2983.1,4.09710353]
[1763411527317,3.21283027,2984.4,2983.7,3.2078]
[1763411527523,3.21283027,2984.4,2983.7,4.09710353]
[1763411527919,3.21283027,2984.4,2983.8,0.88930353]
[1763411528221,3.21283027,2984.4,2983.7,3.2078]
[1763411528222,0.4131,2984.0,2983.4,0.88930353]
[1763411528419,0.4131,2984.0,2983.8,0.00503027]
[1763411528620,0.4131,2984.0,2983.3,0.88930353]
[1763411528822,0.4131,2984.0,2982.9,1.78790366]
[1763411528823,3.2078,2983.5,2982.9,0.88930353]
[1763411529023,3.2078,2983.8,2983.2,3.2078]
[1763411529525,3.2078,2983.8,2983.4,0.88930353]
[1763411529724,3.2078,2984.2,2983.4,0.88930353]
[1763411530024,3.2078,2983.8,2983.4,0.88930353]
[1763411530218,3.2078,2984.2,2983.4,0.88930353]
[1763411530618,3.2078,2983.6,2983.1,0.88930353]
[1763411530821,3.2078,2983.9,2983.3,3.2078]
[1763411531127,3.2078,2983.9,2983.2,0.88930353]
[1763411531822,3.2078,2983.9,2983.3,3.2078]
[1763411532024,3.2078,2984.2,2983.3,4.09710353]
[1763411532326,0.00350468,2984.2,2984.0,4.82873577]
[1763411532525,0.00503027,2984.4,2984.1,6.0]
[1763411532720,0.00503027,2984.4,2984.3,3.2078]
[1763411532920,3.027e-05,2984.4,2984.3,3.2078]
[1763411533122,3.2078,2985.3,2984.3,12.5582]
[1763411533319,3.2078,2985.3,2984.7,0.89590427]
[1763411533520,3.2078,2985.9,2985.2,3.2078]
[1763411533729,3.2078,2985.5,2984.9,3.2078]
[1763411533926,3.2078,2985.5,2984.8,0.89590427]
[1763411534123,0.4131,2984.8,2984.5,0.00503027]
[1763411534425,3.2078,2984.6,2983.3,0.00309371]
[1763411534627,3.2078,2984.2,2983.3,0.00309371]
[1763411534833,3.2078,2984.2,2983.5,3.2078]
[1763411535515,3.2078,2984.5,2983.5,3.2078]
[1763411536027,3.2078,2984.2,2983.5,3.2078]
[1763411536229,3.2078,2984.5,2983.5,3.2078]
[1763411536426,3.2078,2984.5,2983.8,3.2078]
[1763411536830,3.2078,2984.9,2984.2,3.2078]
[1763411537029,0.4131,2985.6,2984.8,3.2078]
[1763411537223,3.2078,2985.9,2984.9,3.2078]
[1763411537423,0.4131,2986.2,2984.3,1.79180855]
[1763411537424,3.2078,2985.0,2984.3,3.2078]
[1763411537623,3.2078,2984.6,2984.0,1.79180855]
[1763411537830,3.2078,2985.2,2984.0,0.4173]
[1763411538027,3.2078,2985.2,2984.4,3.2078]
[1763411538324,3.2078,2985.8,2984.8,0.4173]
[1763411538729,3.2078,2985.6,2984.8,3.6251]
[1763411539135,3.2078,2985.6,2984.8,3.2078]
[1763411539431,3.2078,2985.0,2984.3,3.2078]
[1763411539625,3.6058,2985.6,2984.3,3.2078]
[1763411539830,3.6058,2985.6,2984.7,3.2078]
[1763411540032,3.2078,2984.8,2984.1,3.2078]
[1763411540222,3.2078,2985.1,2984.1,3.2078]
[1763411540424,0.00503027,2985.4,2984.5,3.2078]
[1763411540425,3.21283027,2985.4,2984.5,3.2078]
[1763411540627,0.00503027,2985.4,2984.5,3.2078]
[1763411540829,0.00503027,2985.4,2983.5,2.3753901]
[1763411540830,3.2078,2984.8,2983.8,1.79180855]
[1763411541133,3.2078,2984.8,2983.7,3.2078]
[1763411541134,3.2078,2984.4,2983.7,3.2078]
[1763411541323,3.2078,2984.6,2983.7,3.2078]
[1763411541524,3.2078,2983.8,2983.3,0.00309371]
[1763411541837,3.2078,2983.9,2983.3,0.00309371]
[1763411542335,3.2078,2983.9,2983.3,0.00812398]
[1763411542536,3.2078,2983.6,2983.3,0.00812398]
[1763411542832,0.398,2983.5,2983.3,0.00812398]
[1763411543033,1.77680364,2984.7,2983.3,0.00812398]
[1763411543034,3.2078,2984.2,2983.3,0.00812398]
[1763411543231,3.2078,2984.2,2983.5,3.2078]
[1763411543831,3.2078,2984.2,2983.5,3.6251]
[1763411544143,3.2078,2984.8,2983.8,3.2078]
[1763411544326,3.2078,2984.8,2983.6,1.79180855]
[1763411544633,3.21065801,2984.8,2984.0,3.2078]
[1763411545227,3.60865801,2984.8,2984.0,3.2078]
[1763411545421,3.2078,2984.4,2983.7,3.2078]
[1763411545622,3.2078,2984.7,2984.0,3.2078]
[1763411546027,0.00503027,2984.6,2984.0,3.2078]
[1763411546331,3.2078,2984.5,2983.8,3.2078]
[1763411546527,0.00503027,2984.6,2983.8,3.2078]
[1763411547434,0.00503027,2984.6,2984.1,3.2078]
[1763411548133,0.00503027,2984.6,2984.5,3.2078]
[1763411549325,0.00503027,2984.6,2984.2,3.2078]
[1763411549927,0.00503027,2984.6,2983.8,4.99960855]
[1763411550526,0.00503027,2984.6,2983.4,4.99960855]
[1763411550527,3.2078,2984.5,2983.4,4.99960855]
[1763411550726,0.00503027,2984.6,2983.7,3.2078]
[1763411551326,0.00503027,2984.6,2983.5,1.79180855]
[1763411551327,0.00503027,2984.6,2984.0,3.2078]
[1763411551536,0.00503027,2984.6,2984.0,3.5764]
[1763411552038,0.00503027,2984.6,2984.3,3.2078]
[1763411552333,0.00503027,2984.6,2984.0,3.5764]
[1763411552834,0.00503027,2984.6,2984.0,3.2078]
[1763411553130,0.00503027,2984.6,2984.0,3.5764]
[1763411553335,0.00503027,2984.6,2984.0,3.2078]
[1763411553923,0.00503027,2984.6,2983.7,4.99960855]
[1763411554128,0.00503027,2984.6,2984.0,3.2078]
[1763411554338,0.00503027,2984.6,2984.3,3.2078]
[1763411554529,0.00503027,2984.6,2984.0,3.5764]
[1763411554738,0.00503027,2984.6,2984.3,3.2078]
[1763411555129,0.00503027,2984.6,2984.0,3.2078]
[1763411555437,0.00503027,2984.6,2984.3,3.2078]
[1763411555633,0.00503027,2984.6,2984.0,3.2078]
[1763411555833,0.00503027,2984.6,2984.0,3.5764]
[1763411556025,3.2078,2984.5,2983.8,1.79180855]
[1763411556225,0.00503027,2984.6,2983.8,1.79180855]
[1763411556931,0.00503027,2984.6,2984.0,3.2078]
[1763411558136,0.00503027,2984.6,2984.3,3.2078]
[1763411558639,0.00503027,2984.6,2984.0,4.99960855]
[1763411558840,3.2078,2984.5,2984.0,3.2078]
[1763411559227,3.2078,2984.2,2983.8,1.79180855]
[1763411559533,3.2078,2983.9,2983.3,0.00812398]
[1763411559736,3.2078,2983.4,2983.3,0.00812398]
[1763411559931,3.2078,2983.7,2983.3,0.00812398]
[1763411560442,3.2078,2984.0,2983.3,0.00812398]
[1763411560738,3.2078,2984.3,2983.7,3.2078]
[1763411560938,0.00503027,2984.6,2984.1,3.2078]
[1763411561336,0.00503027,2984.6,2984.1,3.6238]
[1763411561542,0.00503027,2984.6,2984.1,3.2078]
[1763411562837,0.00503027,2984.6,2984.1,3.6238]
[1763411563043,0.00503027,2984.6,2984.0,4.99960855]
[1763411563439,0.00503027,2984.6,2983.8,3.2078]
[1763411563835,0.00503027,2984.6,2983.8,1.79180855]
[1763411564041,3.2078,2984.4,2983.9,1.19881757]
[1763411564341,0.4202,2984.1,2983.8,1.19881757]
[1763411564540,3.628,2984.1,2983.4,3.2078]
[1763411564743,3.2078,2983.8,2983.3,0.00812398]
[1763411565240,3.2078,2983.4,2983.3,0.00812398]
[1763411565548,0.2913,2983.4,2983.3,0.00812398]
[1763411566248,0.2913,2983.4,2983.3,0.00503027]
[1763411566545,0.2913,2983.4,2981.8,1.19881757]
[1763411566546,6.2913,2983.4,2981.8,1.19881757]
[1763411566735,3.2078,2982.5,2981.8,1.19881757]
[1763411566935,3.2078,2982.2,2981.8,1.19881757]
[1763411567143,3.2078,2982.5,2981.7,1.19881757]
[1763411567343,3.2078,2982.5,2981.6,1.19881757]
[1763411567546,2.06810364,2983.4,2981.7,0.00503027]
[1763411567547,3.2078,2982.2,2981.7,0.00503027]
[1763411567745,3.2078,2982.5,2981.7,0.00503027]
[1763411568148,3.2078,2982.2,2981.7,0.00503027]
[1763411568440,3.2078,2981.8,2981.7,0.00503027]
[1763411568743,3.2078,2981.8,2980.7,3.2078]
[1763411568939,3.2078,2981.3,2981.1,0.00377014]
[1763411569644,9.2078,2981.3,2980.1,3.2078]
[1763411569850,0.3346,2981.6,2980.1,3.2078]
[1763411569851,3.628,2980.8,2980.1,3.2078]
[1763411570548,3.2078,2980.5,2979.6,0.26466666]
[1763411570847,0.4202,2980.8,2978.6,11.41613759]
[1763411570848,3.2078,2979.9,2978.8,4.40661757]
[1763411571142,0.313,2980.0,2979.2,3.2078]
[1763411571841,3.2078,2979.8,2978.8,3.2078]
[1763411572045,3.2078,2979.8,2979.2,3.2078]
[1763411572843,3.2078,2980.3,2979.5,3.2078]
[1763411573043,0.4202,2980.8,2980.0,3.2078]
[1763411573044,3.628,2980.8,2980.0,3.2078]
[1763411574148,3.2078,2980.5,2979.6,3.2078]
[1763411574346,3.2078,2980.2,2979.6,3.2078]
[1763411574647,0.4202,2980.0,2979.6,3.2078]
[1763411574843,3.2078,2979.9,2978.7,0.03689801]
[1763411575041,3.2078,2978.8,2978.7,0.03689801]
[1763411575648,3.2078,2979.1,2978.7,0.03689801]
[1763411575949,3.2078,2978.8,2978.7,0.03689801]
[1763411576447,3.2078,2979.1,2978.7,0.03689801]
[1763411576945,0.4202,2979.2,2978.7,0.03689801]
[1763411576946,3.2078,2978.8,2978.7,0.03689801]
[1763411577147,3.21095029,2978.8,2978.7,0.03689801]
[1763411577348,0.00315029,2978.8,2978.7,0.03689801]
[1763411579144,0.00315029,2978.8,2976.8,0.416]
[1763411579448,3.2078,2977.5,2976.6,3.2078]
[1763411579644,3.2078,2978.0,2977.0,3.2078]
[1763411580045,3.2078,2978.0,2977.3,3.2078]
[1763411580345,3.2078,2978.1,2977.6,3.2078]
[1763411580743,3.5689,2978.4,2977.6,3.2078]
[1763411580943,3.2078,2978.4,2977.6,3.2078]
[1763411581142,3.2078,2978.4,2977.6,3.5914]
[1763411581840,3.2078,2978.4,2977.6,3.2078]
[1763411582037,3.2078,2977.7,2976.9,3.2078]
[1763411582241,0.00503904,2977.9,2976.9,3.2078]
[1763411582446,0.00503904,2977.9,2976.9,3.2106332]
[1763411582841,3.2078,2977.7,2976.9,3.2106332]
[1763411583042,0.3611,2977.6,2976.9,3.2106332]
[1763411583243,3.2078,2977.7,2976.9,3.2106332]
[1763411583638,0.00503904,2977.9,2976.9,3.2106332]
[1763411583845,3.2078,2977.2,2976.9,0.0028332]
[1763411584247,3.2078,2977.2,2975.2,0.416]
[1763411584248,0.3611,2976.8,2975.9,3.2078]
[1763411584449,3.2078,2976.6,2975.6,3.2078]
[1763411584753,0.3611,2976.8,2975.9,3.2078]
[1763411585058,3.2078,2976.6,2975.9,3.2078]
[1763411585243,3.2078,2976.3,2975.6,3.2078]
[1763411585749,3.2078,2977.1,2976.2,3.2078]
[1763411586151,3.2078,2977.1,2976.5,3.2078]
[1763411587354,3.5689,2976.8,2975.7,3.2078]
[1763411587559,3.2078,2977.0,2976.1,3.2078]
[1763411588145,3.21189657,2977.0,2976.1,3.21195021]
[1763411588656,0.3611,2977.6,2976.1,3.21195021]
[1763411588657,0.00503904,2977.9,2976.8,3.5597]
[1763411588852,0.00503904,2977.9,2977.2,3.2078]
[1763411589552,3.2078,2978.4,2977.6,3.5914]
[1763411589859,3.2078,2979.0,2977.9,3.2078]
[1763411590060,3.2078,2978.7,2977.9,3.2078]
[1763411590353,3.2078,2978.1,2977.6,3.2078]
[1763411591351,3.2078,2978.3,2977.6,3.2078]
[1763411591552,3.2078,2978.6,2977.6,3.5914]
[1763411592061,2.62902125,2979.3,2977.6,3.5914]
[1763411592062,3.2078,2978.9,2978.1,3.2078]
[1763411592250,3.2078,2978.9,2977.6,0.3836]